{"text_format":"1","workbook":"xlsx","n_sheets":2,"sheets":["بالمعادلة","بالدالة المعرفة"],"not_rendered":{"charts":0,"images":0,"macros":1,"external_links":0,"defined_names":1,"comments":0,"pivot_tables":0},"unopened":[],"bounds":{"document_bytes":16777216,"sheet_cells":100000,"rows_first":2000,"rows_last":500,"rows_between":2000,"halvings":0,"cell_chars":16384,"cell_head_chars":4096},"cells_cut":0,"cells_raw":0,"read":"whole","date_system":"1900"}

{"sheet":"بالمعادلة","index":0,"n_rows":12,"n_cols":2,"rows_kept":12,"cut":false,"hidden":false,"merged":[]}
["اسم الطالب","اسم الاب"]
[" اسماعيل احمد حسن",{"$f":"IF(A2=\"\",\"\",MID(A2,FIND(\" \",A2,5)+1,LEN(A2)))","v":"احمد حسن"}]
[" احمد عبد الظاهر يونس",{"$f":"IF(A3=\"\",\"\",MID(A3,FIND(\" \",A3,5)+1,LEN(A3)))","v":"عبد الظاهر يونس"}]
[" اسماعيل ابراهيم محمد","ابراهيم محمد"]
[" اشرف اسماعيل ادريس","اسماعيل ادريس"]
[null,""]
[null,""]
[null,""]
[null,""]
[null,""]
[null,""]
[null,""]

{"sheet":"بالدالة المعرفة","index":1,"n_rows":6,"n_cols":5,"rows_kept":6,"cut":false,"hidden":false,"merged":[]}
[null,1,2,3,4]
["الأسم","الاسم الاول","أسم الأب","الجد الاول","الجد الثانى"]
[" اسماعيل احمد حسن",{"$f":"Kh_Name($A3,B$1)","v":"اسماعيل"},{"$f":"Kh_Name($A3,C$1)","v":"احمد"},{"$f":"Kh_Name($A3,D$1)","v":"حسن"},{"$f":"Kh_Name($A3,E$1)","v":""}]
[" احمد عبد الظاهر يونس",{"$f":"Kh_Name($A4,B$1)","v":"احمد"},{"$f":"Kh_Name($A4,C$1)","v":"عبد الظاهر"},{"$f":"Kh_Name($A4,D$1)","v":"يونس"},{"$f":"Kh_Name($A4,E$1)","v":""}]
[" اسماعيل ابراهيم محمد",{"$f":"Kh_Name($A5,B$1)","v":"اسماعيل"},{"$f":"Kh_Name($A5,C$1)","v":"ابراهيم"},{"$f":"Kh_Name($A5,D$1)","v":"محمد"},{"$f":"Kh_Name($A5,E$1)","v":""}]
[" اشرف اسماعيل ادريس",{"$f":"Kh_Name($A6,B$1)","v":"اشرف"},{"$f":"Kh_Name($A6,C$1)","v":"اسماعيل"},{"$f":"Kh_Name($A6,D$1)","v":"ادريس"},{"$f":"Kh_Name($A6,E$1)","v":""}]